fUST/lending_fUST_20250215
["ID","MTS","AMOUNT","RATE_DAILY","PERIOD"]
[353158636,1739616365009,685.46,8.845e-05,2]
[353158637,1739616366335,604.23,8.845e-05,2]
[353158638,1739616366757,5851.61,8.845e-05,2]
[353158639,1739616372535,500.0,8.845e-05,2]
[353158640,1739616375716,902.03,8.845e-05,2]
[353158641,1739616377276,1700.08,8.845e-05,2]
[353158642,1739616377313,1390.26,8.845e-05,2]
[353158643,1739616377712,22552.85,8.845e-05,2]
[353158644,1739616381357,500.0,8.845e-05,2]
[353158645,1739616386760,500.0,8.845e-05,2]
[353158646,1739616388732,500.0,8.845e-05,2]
[353158647,1739616391582,821.56,8.845e-05,2]
[353158648,1739616393743,54654.81,8.845e-05,2]
[353158649,1739616393992,500.0,8.845e-05,2]
[353158650,1739616394451,500.0,8.845e-05,2]
[353158651,1739616394568,500.0,8.845e-05,2]
[353158652,1739616396142,2967.47,8.845e-05,2]
[353158653,1739616398387,1162.6,8.845e-05,2]
[353158654,1739616401485,4774.3117583,7.929e-05,2]
[353158655,1739616402572,500.0,8.845e-05,2]
[353158656,1739616405884,500.0,8.845e-05,2]
[353158657,1739616406831,500.0,8.845e-05,2]
[353158658,1739616407478,3239.53,8.845e-05,2]
[353158659,1739616409130,500.0,8.845e-05,2]
[353158660,1739616410570,4498.88,8.845e-05,2]
[353158661,1739616411023,500.0,8.845e-05,2]
[353158662,1739616413021,1092.1,8.845e-05,2]
[353158663,1739616418453,973.87,8.845e-05,2]
[353158664,1739616420371,2118.78,8.845e-05,2]
[353158665,1739616424471,500.0,8.845e-05,2]
[353158666,1739616426563,2414.59,8.845e-05,2]
[353158667,1739616431143,500.0,8.845e-05,2]
[353158668,1739616431958,1097.05,8.845e-05,2]
[353158669,1739616433274,500.0,8.845e-05,2]
[353158670,1739616435043,2015.86,8.845e-05,2]
[353158671,1739616437557,521.65,8.845e-05,2]
[353158672,1739616439988,1036.77,8.845e-05,2]
[353158673,1739616440978,500.0,8.845e-05,2]
[353158674,1739616449016,500.0,8.845e-05,2]
[353158675,1739616449468,500.0,8.845e-05,2]
[353158676,1739616451667,1169.46,8.845e-05,2]
[353158677,1739616453769,500.0,8.845e-05,2]
[353158678,1739616455192,1412.71,8.845e-05,2]
[353158679,1739616457481,1899.4,8.845e-05,2]
[353158680,1739616459140,545.39,8.845e-05,2]
[353158681,1739616463443,835.63,8.845e-05,2]
[353158682,1739616465825,500.0,8.845e-05,2]
[353158683,1739616466689,500.0,8.845e-05,2]
[353158684,1739616472305,2597.71,8.845e-05,2]
[353158685,1739616473604,634.2,8.845e-05,2]
[353158686,1739616479291,500.0,8.845e-05,2]
[353158687,1739616483337,500.0,8.845e-05,2]
[353158688,1739616486995,182.52715851,8.845e-05,2]
[353158689,1739616487966,691.41,8.845e-05,2]
[353158690,1739616489436,525.6,8.845e-05,2]
[353158691,1739616490718,2204.6,8.845e-05,2]
[353158692,1739616490918,280.56054517,8.845e-05,2]
[353158693,1739616494636,467.63351307,8.845e-05,2]
[353158694,1739616496385,681.09,8.845e-05,2]
[353158695,1739616496754,500.0,8.845e-05,2]
[353158696,1739616499430,670.9,8.845e-05,2]
[353158697,1739616505921,547.20811981,8.845e-05,2]
[353158698,1739616508291,558.85,8.845e-05,2]
[353158699,1739616508475,500.0,8.845e-05,2]
[353158700,1739616515771,18636.51,8.845e-05,2]
[353158701,1739616521545,919.48,8.845e-05,2]
[353158702,1739616527720,876.01,8.845e-05,2]
[353158703,1739616530685,1978.46,8.845e-05,2]
[353158704,1739616532820,2021.7,8.845e-05,2]
[353158705,1739616534380,501.99831608,8.845e-05,2]
[353158706,1739616543854,500.0,8.845e-05,2]
[353158707,1739616548436,1193.16,8.845e-05,2]
[353158712,1739616551235,500.0,8.845e-05,2]
[353158713,1739616554733,500.0,8.845e-05,2]
[353158714,1739616563863,500.0,8.845e-05,2]
[353158715,1739616571143,875.0,8.845e-05,2]
[353158719,1739616575539,618.12,8.845e-05,2]
[353158720,1739616584441,500.0,8.845e-05,2]
[353158721,1739616584785,500.0,8.845e-05,2]
[353158722,1739616587372,500.0,8.845e-05,2]
[353158723,1739616587941,4881.84,8.845e-05,2]
[353158724,1739616599268,1302.95,8.845e-05,2]
[353158725,1739616616556,659.58,8.845e-05,2]
[353158726,1739616624301,500.0,8.845e-05,2]
[353158727,1739616629011,21613.14,8.845e-05,2]
[353158728,1739616630870,516.79,8.845e-05,2]
[353158784,1739616632436,-300.0,8.924e-05,2]
[353158786,1739616632446,-150.595,8.925e-05,2]
[353158788,1739616632455,-1970.0,8.925e-05,2]
[353158790,1739616632465,-538.0,8.925e-05,2]
[353158792,1739616632474,-2292.0,8.925e-05,2]
[353158794,1739616632484,-150.0,8.925e-05,2]
[353158796,1739616632494,-396.0,8.925e-05,2]
[353158798,1739616632503,-150.121,8.925e-05,2]
[353158800,1739616632512,-490.913,8.925e-05,2]
[353158802,1739616632522,-2745.95,8.926e-05,2]
[353158804,1739616632531,-500.0,8.926e-05,2]
[353158806,1739616632540,-500.0,8.926e-05,2]
[353158808,1739616632549,-500.0,8.926e-05,2]
[353158810,1739616632558,-536.58,8.926e-05,2]
[353158813,1739616632567,-500.0,8.926e-05,2]
[353158815,1739616632576,-500.0,8.926e-05,2]
[353158818,1739616632586,-500.0,8.926e-05,2]
[353158821,1739616632595,-998.75,8.926e-05,2]
[353158824,1739616632605,-2965.0981259,8.926e-05,2]
[353159197,1739616636215,1629.25,8.845e-05,2]
[353159890,1739616642837,2843.83,8.845e-05,2]
[353160231,1739616646151,-150.183,8.925e-05,2]
[353160233,1739616646163,-5068.2118741,8.926e-05,2]
[353160235,1739616646173,-500.0,8.926e-05,2]
[353160237,1739616646182,-500.0,8.926e-05,2]
[353160239,1739616646191,-2867.96,8.926e-05,2]
[353160241,1739616646202,-500.0,8.926e-05,2]
[353160243,1739616646211,-2034.68,8.926e-05,2]
[353160245,1739616646221,-4087.32,8.926e-05,2]
[353160248,1739616646233,-1606.91,8.926e-05,2]
[353160250,1739616646242,-500.0,8.926e-05,2]
[353160252,1739616646251,-500.0,8.926e-05,2]
[353160254,1739616646261,-986.07,8.926e-05,2]
[353160256,1739616646271,-591.68,8.926e-05,2]
[353160258,1739616646280,-500.0,8.926e-05,2]
[353160260,1739616646290,-500.0,8.926e-05,2]
[353160262,1739616646299,-500.0,8.926e-05,2]
[353160264,1739616646308,-710.74,8.926e-05,2]
[353160266,1739616646317,-727.11,8.926e-05,2]
[353160268,1739616646327,-2173.04,8.926e-05,2]
[353160270,1739616646336,-519.06,8.926e-05,2]
[353160272,1739616646346,-2692.54,8.926e-05,2]
[353160274,1739616646355,-2117.05,8.926e-05,2]
[353160276,1739616646365,-1481.21,8.926e-05,2]
[353160278,1739616646374,-2343.05,8.926e-05,2]
[353160280,1739616646383,-1717.93,8.926e-05,2]
[353160282,1739616646392,-5607.79,8.926e-05,2]
[353160284,1739616646401,-500.0,8.926e-05,2]
[353160286,1739616646410,-1248.93,8.926e-05,2]
[353160288,1739616646419,-500.0,8.926e-05,2]
[353160290,1739616646428,-500.0,8.926e-05,2]
[353160292,1739616646438,-500.0,8.926e-05,2]
[353160294,1739616646447,-565.67,8.926e-05,2]
[353160296,1739616646456,-500.0,8.926e-05,2]
[353160298,1739616646466,-500.0,8.926e-05,2]
[353160300,1739616646475,-500.0,8.926e-05,2]
[353160302,1739616646485,-500.0,8.926e-05,2]
[353160304,1739616646494,-4311.43,8.926e-05,2]
[353160306,1739616646503,-500.0,8.926e-05,2]
[353160308,1739616646513,-2313.98,8.926e-05,2]
[353160310,1739616646522,-500.0,8.926e-05,2]
[353160312,1739616646531,-500.0,8.926e-05,2]
[353160314,1739616646539,-1931.87,8.926e-05,2]
[353160316,1739616646549,-502.75964619,8.926e-05,2]
[353160318,1739616646558,-580.08837798,8.927e-05,2]
[353160320,1739616646567,-500.0,8.927e-05,2]
[353160322,1739616646576,-500.0,8.927e-05,2]
[353160324,1739616646585,-500.0,8.927e-05,2]
[353160326,1739616646595,-502.66178192,8.927e-05,2]
[353160328,1739616646605,-500.0,8.927e-05,2]
[353160330,1739616646614,-500.0,8.927e-05,2]
[353160332,1739616646623,-500.0,8.927e-05,2]
[353160334,1739616646633,-500.0,8.927e-05,2]
[353160336,1739616646642,-500.0,8.927e-05,2]
[353160338,1739616646651,-503.40598112,8.927e-05,2]
[353160340,1739616646660,-501.78916433,8.927e-05,2]
[353160342,1739616646670,-500.0,8.927e-05,2]
[353160344,1739616646679,-500.0,8.927e-05,2]
[353160346,1739616646688,-500.0,8.927e-05,2]
[353160348,1739616646698,-500.0,8.927e-05,2]
[353160350,1739616646707,-500.0,8.927e-05,2]
[353160352,1739616646717,-500.0,8.927e-05,2]
[353160354,1739616646726,-500.0,8.927e-05,2]
[353160356,1739616646736,-1167.46,8.927e-05,2]
[353160358,1739616646746,-839.1,8.927e-05,2]
[353160360,1739616646756,-500.0,8.927e-05,2]
[353160362,1739616646765,-384.47588428,8.927e-05,2]
[353160364,1739616646774,-500.0,8.927e-05,2]
[353160366,1739616646783,-500.0,8.927e-05,2]
[353160368,1739616646793,-500.0,8.927e-05,2]
[353160370,1739616646802,-697.91,8.927e-05,2]
[353160372,1739616646813,-801.03,8.927e-05,2]
[353160374,1739616646823,-1047.13,8.927e-05,2]
[353160377,1739616646833,-500.0,8.927e-05,2]
[353160379,1739616646842,-758.59,8.927e-05,2]
[353160380,1739616646852,-500.0,8.927e-05,2]
[353160383,1739616646861,-500.0,8.927e-05,2]
[353160385,1739616646870,-598.32,8.927e-05,2]
[353160387,1739616646880,-500.0,8.927e-05,2]
[353160389,1739616646890,-500.0,8.927e-05,2]
[353160391,1739616646900,-500.0,8.927e-05,2]
[353160393,1739616646910,-473.48229253,8.927e-05,2]
[353160395,1739616646919,-2271.22,8.927e-05,2]
[353160397,1739616646929,-2340.65,8.927e-05,2]
[353160399,1739616646939,-500.0,8.927e-05,2]
[353160401,1739616646948,-500.0,8.927e-05,2]
[353160403,1739616646957,-500.0,8.927e-05,2]
[353160405,1739616646967,-923.86,8.927e-05,2]
[353160407,1739616646976,-500.0,8.927e-05,2]
[353160409,1739616646986,-281.76708496,8.927e-05,2]
[353160411,1739616646995,-500.0,8.927e-05,2]
[353160413,1739616647004,-500.0,8.927e-05,2]
[353160415,1739616647014,-500.0,8.927e-05,2]
[353160417,1739616647023,-507.10129676,8.927e-05,2]
[353160419,1739616647033,-1358.74,8.927e-05,2]
[353160421,1739616647042,-500.0,8.927e-05,2]
[353160423,1739616647052,-789.69,8.927e-05,2]
[353160425,1739616647062,-500.0,8.927e-05,2]
[353160427,1739616647072,-815.6,8.927e-05,2]
[353160429,1739616647081,-500.0,8.927e-05,2]
[353160431,1739616647090,-1537.78,8.927e-05,2]
[353160433,1739616647099,-500.0,8.927e-05,2]
[353160435,1739616647109,-2012.50572517,8.927e-05,2]
[353160837,1739616651269,52377.52,8.845e-05,2]
[353161122,1739616654139,500.0,8.845e-05,2]
[353161172,1739616654696,548.46,8.845e-05,2]
[353161672,1739616660962,933.29,8.845e-05,2]
[353161677,1739616661009,3104.55,8.845e-05,2]
[353162007,1739616669361,1802.70952778,8.845e-05,2]
[353162008,1739616673009,2081.95,8.845e-05,2]
[353162009,1739616673904,1324.23,8.845e-05,2]
[353162010,1739616683002,500.0,8.845e-05,2]
[353162011,1739616684974,2145.59,8.845e-05,2]
[353162012,1739616685206,1051.34,8.845e-05,2]
[353162013,1739616693299,993.57,8.845e-05,2]
[353162014,1739616703545,500.0,0.00017808,30]
[353162015,1739616722086,303.82522666,8.845e-05,2]
[353162016,1739616730438,652.71,8.845e-05,2]
[353162017,1739616731353,500.0,8.845e-05,2]
[353162018,1739616739680,500.0,8.845e-05,2]
[353162019,1739616747185,17859.99,8.845e-05,2]
[353162020,1739616770413,1937.46,8.845e-05,2]
[353162021,1739616773350,1983.06,8.845e-05,2]
[353162022,1739616801498,500.0,8.845e-05,2]
[353162023,1739616802487,500.0,8.845e-05,2]
[353162024,1739616813621,1213.97,8.845e-05,2]
[353162025,1739616819684,799.09,8.845e-05,2]
[353162026,1739616840336,523.58,8.845e-05,2]
[353162029,1739616893964,500.0,8.845e-05,2]
[353162030,1739616904711,151.0,0.00018,30]
[353162031,1739616908152,600.0,8.635e-05,2]
[353162032,1739616908957,600.0,8.725e-05,2]
[353162033,1739616909386,600.0,8.815e-05,2]
[353162034,1739616934843,500.0,8.845e-05,2]
[353162035,1739616938121,500.0,8.845e-05,2]
[353162036,1739616945146,656.9,8.845e-05,2]
[353162037,1739616973295,500.0,8.845e-05,2]
[353162038,1739616977900,1224.89,8.845e-05,2]
[353162039,1739616987808,500.0,8.845e-05,2]
[353162040,1739617014722,500.0,8.845e-05,2]
[353162041,1739617024528,500.0,8.845e-05,2]
[353162042,1739617029553,522.67,8.845e-05,2]
[353162043,1739617058462,2112.74,8.845e-05,2]
[353162044,1739617066656,743.59,8.845e-05,2]
[353162045,1739617168332,21857.06228757,0.00018,30]
[353162053,1739617676053,500.0,0.00017808,30]
[353162054,1739617792078,503.0,0.00018,30]
[353162069,1739617832352,-300.0,8.922e-05,2]
[353162070,1739617832363,-2580.35,8.923e-05,2]
[353162071,1739617832374,-1646.35,8.923e-05,2]
[353162072,1739617832384,-681.12,8.923e-05,2]
[353162073,1739617832393,-542.1,8.923e-05,2]
[353162074,1739617832403,-1196.89,8.923e-05,2]
[353162075,1739617832412,-501.58370854,8.924e-05,2]
[353162076,1739617832421,-846.87,8.924e-05,2]
[353162077,1739617832432,-747.64,8.924e-05,2]
[353162078,1739617832441,-500.0,8.924e-05,2]
[353162079,1739617832450,-723.89,8.924e-05,2]
[353162080,1739617832460,-303.95570992,8.924e-05,2]
[353162081,1739617832469,-500.0,8.924e-05,2]
[353162082,1739617832478,-1409.63,8.924e-05,2]
[353162083,1739617832489,-500.0,8.924e-05,2]
[353162084,1739617832498,-500.0,8.924e-05,2]
[353162085,1739617832507,-500.0,8.924e-05,2]
[353162086,1739617832517,-1274.97,8.924e-05,2]
[353162088,1739617832526,-755.48,8.924e-05,2]
[353162090,1739617832536,-500.0,8.924e-05,2]
[353162092,1739617832546,-793.92,8.924e-05,2]
[353162094,1739617832555,-500.0,8.924e-05,2]
[353162096,1739617832564,-1130.71,8.924e-05,2]
[353162097,1739617832573,-500.0,8.924e-05,2]
[353162098,1739617832583,-500.0,8.924e-05,2]
[353162099,1739617832593,-500.0,8.924e-05,2]
[353162101,1739617832602,-851.48,8.924e-05,2]
[353162103,1739617832612,-500.0,8.924e-05,2]
[353162105,1739617832621,-809.09,8.924e-05,2]
[353162106,1739617832631,-696.81,8.924e-05,2]
[353162107,1739617832641,-500.0,8.924e-05,2]
[353162108,1739617832653,-838.04,8.924e-05,2]
[353162109,1739617832663,-500.0,8.924e-05,2]
[353162110,1739617832672,-500.0,8.924e-05,2]
[353162111,1739617832683,-500.0,8.924e-05,2]
[353162112,1739617832692,-500.0,8.924e-05,2]
[353162113,1739617832703,-500.0,8.924e-05,2]
[353162114,1739617832715,-606.53,8.924e-05,2]
[353162115,1739617832724,-1332.33,8.924e-05,2]
[353162116,1739617832734,-500.0,8.924e-05,2]
[353162117,1739617832744,-500.0,8.924e-05,2]
[353162118,1739617832754,-787.33,8.924e-05,2]
[353162119,1739617832763,-502.36348001,8.924e-05,2]
[353162120,1739617832773,-500.0,8.924e-05,2]
[353162121,1739617832783,-500.0,8.924e-05,2]
[353162122,1739617832793,-500.0,8.924e-05,2]
[353162123,1739617832802,-500.0,8.924e-05,2]
[353162124,1739617832812,-500.0,8.924e-05,2]
[353162125,1739617832821,-1046.6,8.924e-05,2]
[353162126,1739617832831,-3394.3,8.924e-05,2]
[353162127,1739617832840,-500.0,8.924e-05,2]
[353162128,1739617832850,-502.81816364,8.924e-05,2]
[353162129,1739617832860,-505.28697741,8.924e-05,2]
[353162130,1739617832870,-500.0,8.924e-05,2]
[353162131,1739617832880,-500.0,8.924e-05,2]
[353162132,1739617832890,-500.0,8.924e-05,2]
[353162133,1739617832899,-500.0,8.924e-05,2]
[353162134,1739617832909,-500.0,8.924e-05,2]
[353162135,1739617832918,-500.0,8.924e-05,2]
[353162136,1739617832927,-500.0,8.924e-05,2]
[353162137,1739617832936,-514.22,8.924e-05,2]
[353162138,1739617832946,-500.0,8.924e-05,2]
[353162139,1739617832955,-502.8753739,8.924e-05,2]
[353162140,1739617832964,-500.0,8.924e-05,2]
[353162141,1739617832974,-1120.73,8.924e-05,2]
[353162142,1739617832984,-4131.78,8.924e-05,2]
[353162143,1739617832993,-500.0,8.924e-05,2]
[353162144,1739617833002,-1353.85,8.924e-05,2]
[353162145,1739617833012,-500.0,8.924e-05,2]
[353162146,1739617833022,-500.0,8.924e-05,2]
[353162147,1739617833031,-2217.57,8.924e-05,2]
[353162148,1739617833041,-500.0,8.924e-05,2]
[353162149,1739617833051,-607.77,8.924e-05,2]
[353162150,1739617833061,-500.0,8.924e-05,2]
[353162151,1739617833071,-1851.38,8.924e-05,2]
[353162152,1739617833080,-800.81,8.924e-05,2]
[353162153,1739617833091,-500.0,8.924e-05,2]
[353162154,1739617833101,-500.0,8.924e-05,2]
[353162155,1739617833111,-7698.59,8.924e-05,2]
[353162156,1739617833121,-500.0,8.924e-05,2]
[353162157,1739617833132,-957.14,8.924e-05,2]
[353162158,1739617833142,-503.7,8.924e-05,2]
[353162159,1739617833152,-1820.26,8.924e-05,2]
[353162160,1739617833163,-500.0,8.924e-05,2]
[353162161,1739617833173,-500.0,8.924e-05,2]
[353162162,1739617833183,-2489.47,8.924e-05,2]
[353162163,1739617833196,-500.0,8.924e-05,2]
[353162164,1739617833206,-500.0,8.924e-05,2]
[353162165,1739617833217,-2748.46,8.924e-05,2]
[353162166,1739617833228,-4151.03,8.924e-05,2]
[353162167,1739617833238,-500.0,8.924e-05,2]
[353162168,1739617833248,-3917.01,8.924e-05,2]
[353162169,1739617833261,-500.0,8.924e-05,2]
[353162170,1739617833271,-662.6,8.924e-05,2]
[353162171,1739617833281,-500.0,8.924e-05,2]
[353162172,1739617833291,-1949.9,8.924e-05,2]
[353162173,1739617833301,-500.0,8.924e-05,2]
[353162174,1739617833312,-1070.17,8.924e-05,2]
[353162175,1739617833321,-500.0,8.924e-05,2]
[353162176,1739617833331,-944.98,8.924e-05,2]
[353162177,1739617833341,-839.51,8.924e-05,2]
[353162178,1739617833351,-535.56,8.924e-05,2]
[353162179,1739617833361,-1539.95,8.924e-05,2]
[353162180,1739617833371,-500.0,8.924e-05,2]
[353162181,1739617833380,-500.0,8.924e-05,2]
[353162182,1739617833390,-881.17,8.924e-05,2]
[353162183,1739617833400,-500.0,8.924e-05,2]
[353162184,1739617833409,-500.0,8.924e-05,2]
[353162185,1739617833419,-567.03,8.924e-05,2]
[353162186,1739617833429,-769.18,8.924e-05,2]
[353162187,1739617833439,-500.0,8.924e-05,2]
[353162188,1739617833450,-1896.03,8.924e-05,2]
[353162189,1739617833460,-500.0,8.924e-05,2]
[353162190,1739617833470,-500.0,8.924e-05,2]
[353162191,1739617833480,-734.28,8.924e-05,2]
[353162192,1739617833490,-500.0,8.924e-05,2]
[353162193,1739617833499,-768.89,8.924e-05,2]
[353162194,1739617833509,-2082.5,8.924e-05,2]
[353162195,1739617833519,-838.54,8.924e-05,2]
[353162196,1739617833528,-500.0,8.924e-05,2]
[353162197,1739617833538,-1143.45,8.924e-05,2]
[353162198,1739617833548,-959.87,8.924e-05,2]
[353162199,1739617833674,-2028.84,8.924e-05,2]
[353162200,1739617833697,-592.36,8.924e-05,2]
[353162201,1739617833708,-500.0,8.924e-05,2]
[353162202,1739617833718,-500.0,8.924e-05,2]
[353162203,1739617833731,-2896.27,8.924e-05,2]
[353162204,1739617833743,-500.0,8.924e-05,2]
[353162205,1739617833753,-500.0,8.924e-05,2]
[353162206,1739617833763,-500.0,8.924e-05,2]
[353162207,1739617833773,-639.75,8.924e-05,2]
[353162208,1739617833783,-5374.13,8.924e-05,2]
[353162209,1739617833793,-1248.66,8.924e-05,2]
[353162210,1739617833803,-4678.43,8.924e-05,2]
[353162211,1739617833812,-632.1,8.925e-05,2]
[353162212,1739617833822,-500.0,8.925e-05,2]
[353162213,1739617833831,-500.0,8.925e-05,2]
[353162214,1739617833842,-500.0,8.925e-05,2]
[353162215,1739617833852,-525.61,8.925e-05,2]
[353162216,1739617833861,-1995.2,8.925e-05,2]
[353162217,1739617833871,-2056.19,8.925e-05,2]
[353162218,1739617833880,-500.0,8.925e-05,2]
[353162219,1739617833890,-500.0,8.925e-05,2]
[353162220,1739617833899,-1900.43,8.925e-05,2]
[353162221,1739617833910,-500.0,8.925e-05,2]
[353162222,1739617833920,-765.8,8.925e-05,2]
[353162223,1739617833929,-500.0,8.925e-05,2]
[353162224,1739617833938,-501.77,8.925e-05,2]
[353162225,1739617833948,-1163.38,8.925e-05,2]
[353162226,1739617833957,-500.0,8.925e-05,2]
[353162227,1739617833967,-500.0,8.925e-05,2]
[353162228,1739617833977,-500.0,8.925e-05,2]
[353162229,1739617833986,-629.53,8.925e-05,2]
[353162230,1739617833996,-500.0,8.925e-05,2]
[353162231,1739617834006,-1173.85,8.925e-05,2]
[353162232,1739617834015,-350.5507296,8.925e-05,2]
[353162233,1739617834024,-20712.6,8.925e-05,2]
[353162234,1739617834034,-500.0,8.925e-05,2]
[353162235,1739617834044,-2725.33,8.925e-05,2]
[353162236,1739617834053,-500.0,8.925e-05,2]
[353162237,1739617834063,-1561.36,8.925e-05,2]
[353162238,1739617834072,-500.0,8.925e-05,2]
[353162239,1739617834082,-500.89,8.925e-05,2]
[353162240,1739617834091,-894.41,8.925e-05,2]
[353162241,1739617834100,-2975.19,8.925e-05,2]
[353162242,1739617834110,-2024.71,8.925e-05,2]
[353162243,1739617834120,-712.6,8.925e-05,2]
[353162244,1739617834129,-1975.32,8.925e-05,2]
[353162245,1739617834139,-625.71653743,8.925e-05,2]
[353162763,1739617843367,-500.0,8.924e-05,2]
[353162765,1739617843377,-605.76,8.924e-05,2]
[353162767,1739617843387,-500.0,8.924e-05,2]
[353162769,1739617843396,-500.0,8.924e-05,2]
[353162771,1739617843405,-500.0,8.924e-05,2]
[353162773,1739617843415,-12646.62690569,8.924e-05,2]
[353163058,1739617846277,-1357.45000001,8.923e-05,2]
[353165162,1739618106206,775.16738545,8.635e-05,2]
[353165406,1739618350586,165.79911087,8.778e-05,5]
[353165412,1739618492990,500.0,0.00017808,30]
[353165526,1739619032697,-300.0,8.919e-05,2]
[353165528,1739619032707,-3196.31,8.92e-05,2]
[353165530,1739619032716,-500.0,8.92e-05,2]
[353165532,1739619032726,-917.26,8.92e-05,2]
[353165534,1739619032735,-2633.94,8.92e-05,2]
[353165536,1739619032745,-1783.80413906,8.92e-05,2]
[353166088,1739619043551,-84.85586094,8.92e-05,2]
[353166090,1739619043561,-2472.83,8.92e-05,2]
[353166092,1739619043570,-1475.79,8.92e-05,2]
[353166094,1739619043579,-1577.75,8.92e-05,2]
[353166096,1739619043589,-500.0,8.92e-05,2]
[353166098,1739619043598,-543.4,8.92e-05,2]
[353166100,1739619043607,-652.74,8.92e-05,2]
[353166102,1739619043617,-328.71024997,8.92e-05,2]
[353166104,1739619043626,-519.51,8.92e-05,2]
[353166106,1739619043635,-1995.73,8.92e-05,2]
[353166108,1739619043645,-1944.3,8.92e-05,2]
[353166110,1739619043654,-1083.38388766,8.92e-05,2]
[353167541,1739619401719,500.0,0.00017808,30]
[353167542,1739619454881,3156.8668704,8.219e-05,2]
[353167543,1739619759259,12155.573776,7.922e-05,2]
[353167549,1739620126962,-300.0,8.916e-05,2]
[353167550,1739620126984,-500.0,8.917e-05,2]
[353167551,1739620127005,-500.0,8.917e-05,2]
[353167552,1739620127142,-51.15,8.917e-05,2]
[353167563,1739620232911,-300.0,8.916e-05,2]
[353167564,1739620232920,-448.85,8.917e-05,2]
[353167565,1739620232929,-511.75825231,8.917e-05,2]
[353167566,1739620232938,-500.0,8.917e-05,2]
[353167567,1739620232949,-500.0,8.917e-05,2]
[353167568,1739620232959,-667.78,8.917e-05,2]
[353167569,1739620232968,-500.0,8.917e-05,2]
[353167570,1739620232977,-625.54,8.917e-05,2]
[353167571,1739620232986,-2369.8,8.917e-05,2]
[353167572,1739620232996,-1560.49,8.917e-05,2]
[353167573,1739620233005,-197.53074717,8.917e-05,2]
[353167574,1739620233015,-500.0,8.917e-05,2]
[353167575,1739620233026,-1147.02,8.917e-05,2]
[353167576,1739620233035,-500.0,8.917e-05,2]
[353167577,1739620233045,-500.0,8.917e-05,2]
[353167578,1739620233054,-500.0,8.917e-05,2]
[353167579,1739620233063,-500.0,8.917e-05,2]
[353167580,1739620233073,-716.48,8.918e-05,2]
[353167581,1739620233083,-811.58,8.918e-05,2]
[353167582,1739620233093,-693.72,8.918e-05,2]
[353167583,1739620233103,-500.0,8.918e-05,2]
[353167584,1739620233112,-1350.89,8.918e-05,2]
[353167585,1739620233122,-500.0,8.918e-05,2]
[353167586,1739620233132,-1120.02,8.918e-05,2]
[353167587,1739620233141,-693.83,8.918e-05,2]
[353167588,1739620233151,-760.84,8.918e-05,2]
[353167589,1739620233161,-500.0,8.918e-05,2]
[353167590,1739620233171,-816.0,8.918e-05,2]
[353167591,1739620233182,-775.38,8.918e-05,2]
[353167592,1739620233192,-1083.6,8.918e-05,2]
[353167593,1739620233201,-500.0,8.918e-05,2]
[353167594,1739620233211,-803.12,8.918e-05,2]
[353167595,1739620233220,-500.0,8.918e-05,2]
[353167596,1739620233231,-500.0,8.918e-05,2]
[353167597,1739620233241,-581.26,8.918e-05,2]
[353167598,1739620233250,-1276.81,8.918e-05,2]
[353167599,1739620233260,-500.0,8.918e-05,2]
[353167600,1739620233270,-500.0,8.918e-05,2]
[353167601,1739620233279,-500.0,8.918e-05,2]
[353167602,1739620233289,-500.0,8.918e-05,2]
[353167603,1739620233298,-1297.44,8.918e-05,2]
[353167604,1739620233307,-754.53,8.918e-05,2]
[353167605,1739620233317,-500.0,8.918e-05,2]